fUST/lending_fUST_20241205
["ID","MTS","AMOUNT","RATE_DAILY","PERIOD"]
[344301645,1733332254916,-153.0,0.00027546,2]
[344301647,1733332254926,-153.0,0.00027546,2]
[344301649,1733332254935,-153.0,0.00027546,2]
[344301651,1733332254944,-153.0,0.00027546,2]
[344301653,1733332254954,-250.489,0.0002757,2]
[344301655,1733332254964,-327.21687507,0.0002758,2]
[344301657,1733332254975,-51138.35700433,0.0002758,2]
[344301659,1733332254984,-590961.39114566,0.0002758,7]
[344301661,1733332254993,-495315.55920064,0.0002758,2]
[344301680,1733332255178,-28412.954185,0.0002758,2]
[344301682,1733332255195,-505.12846544,0.0002758,2]
[344301694,1733332255306,-3449.40836054,0.0002758,2]
[344301696,1733332255319,-9010.0000008,0.0002758,2]
[344301698,1733332255335,-12279.00000473,0.0002758,2]
[344301700,1733332255351,-188488.8553022,0.0002758,2]
[344301702,1733332255366,-3235.98288181,0.0002758,2]
[344301705,1733332255382,-35748.4518,0.0002758,2]
[344301727,1733332255602,-500.0,0.00024657,7]
[344301730,1733332255614,-271.77,0.00024931,7]
[344301732,1733332255627,-2996.82735021,0.0002758,2]
[344301734,1733332255641,-9489.3,0.0002758,2]
[344301737,1733332255656,-13516.5000027,0.0002758,2]
[344302518,1733332458729,284.753225,0.00013973,2]
[344302525,1733333035311,306.356475,0.00013973,2]
[344302526,1733333210346,-287.79955096,0.00020347,2]
[344302527,1733333213704,-1000.0,0.000275,30]
[344302533,1733333322540,13468.70765923,0.0001,2]
[344302534,1733333322573,686.05628803,0.0001,2]
[344302537,1733333326741,2132.44075615,0.000109,2]
[344302538,1733333368108,4000.0,0.000261,60]
[344302607,1733333432846,-284.753225,0.00020447,2]
[344302609,1733333432856,-617.0,0.00022,2]
[344302611,1733333432866,-158.0,0.00022,2]
[344302613,1733333432875,-617.0,0.00022192,2]
[344302614,1733333432884,-168.224457,0.00022874,2]
[344302615,1733333432897,-617.0,0.00023014,2]
[344302617,1733333432907,-300.0,0.00023464,2]
[344302618,1733333433127,-131.5162992,0.00023465,2]
[344302649,1733333438730,-10753.09260299,0.00023465,2]
[344302650,1733333438743,-14015.39109781,0.00023465,2]
[344302651,1733333438754,-320.82512219,0.00024164,2]
[344302652,1733333438766,-300.17487781,0.00024164,2]
[344302653,1733333438775,-1474.41491799,0.00024554,2]
[344302654,1733333438785,-524.8,0.00024644,3]
[344302655,1733333438795,-262.4,0.00024644,3]
[344302656,1733333438804,-787.22,0.00024644,3]
[344302657,1733333438814,-500.0,0.00024653,2]
[344302658,1733333438824,-703.09269491,0.00024653,2]
[344302659,1733333438834,-500.0,0.00024653,2]
[344302660,1733333438845,-703.09269491,0.00024653,2]
[344302661,1733333438855,-500.0,0.00024653,2]
[344302662,1733333438865,-500.0,0.00024653,2]
[344302663,1733333438875,-703.09269491,0.00024653,2]
[344302664,1733333438884,-500.0,0.00024653,2]
[344302665,1733333438895,-703.09269491,0.00024653,2]
[344302666,1733333438904,-500.0,0.00024653,2]
[344302667,1733333438914,-500.0,0.00024653,2]
[344302668,1733333438924,-703.09269491,0.00024653,2]
[344302669,1733333438934,-500.0,0.00024653,2]
[344302670,1733333438945,-300.0,0.00024653,2]
[344302671,1733333438954,-703.09269491,0.00024653,2]
[344302672,1733333438964,-500.0,0.00024653,2]
[344302673,1733333438974,-703.09269491,0.00024653,2]
[344302674,1733333438988,-703.09269491,0.00024653,2]
[344302675,1733333439000,-500.0,0.00024653,2]
[344302676,1733333439009,-703.09269491,0.00024653,2]
[344302677,1733333439019,-500.0,0.00024653,2]
[344302678,1733333439028,-703.09269491,0.00024653,2]
[344302679,1733333439039,-22.00324206,0.00024653,2]
[344302680,1733333439054,-477.99675794,0.00024653,2]
[344302681,1733333439065,-703.09269491,0.00024653,2]
[344302682,1733333439075,-173.24174681,0.00024653,2]
[344302683,1733333439091,-529.8509481,0.00024653,2]
[344302684,1733333439102,-500.0,0.00024653,2]
[344302685,1733333439112,-500.0,0.00024653,2]
[344302686,1733333439122,-703.09269491,0.00024653,2]
[344302687,1733333439132,-500.0,0.00024653,2]
[344302688,1733333439141,-703.09269491,0.00024653,2]
[344302689,1733333439151,-703.09269491,0.00024653,2]
[344302690,1733333439160,-500.0,0.00024653,2]
[344302691,1733333439171,-703.09269491,0.00024653,2]
[344302692,1733333439180,-500.0,0.00024653,2]
[344302693,1733333439189,-703.09269491,0.00024653,2]
[344302694,1733333439200,-500.0,0.00024653,2]
[344302695,1733333439209,-703.09269491,0.00024653,2]
[344302696,1733333439219,-703.09269491,0.00024653,2]
[344302697,1733333439232,-703.09269491,0.00024653,2]
[344302698,1733333439242,-703.09269491,0.00024653,2]
[344302699,1733333439251,-703.09269491,0.00024653,2]
[344302700,1733333439261,-703.09269491,0.00024653,2]
[344302701,1733333439271,-500.0,0.00024653,2]
[344302702,1733333439280,-703.09269491,0.00024653,2]
[344302703,1733333439291,-703.09269491,0.00024653,2]
[344302704,1733333439301,-500.0,0.00024653,2]
[344302705,1733333439311,-703.09269491,0.00024653,2]
[344302706,1733333439320,-500.0,0.00024653,2]
[344302707,1733333439330,-703.09269491,0.00024653,2]
[344302708,1733333439341,-703.09269491,0.00024653,2]
[344302709,1733333439351,-500.0,0.00024653,2]
[344302710,1733333439361,-500.0,0.00024653,2]
[344302711,1733333439371,-703.09269491,0.00024653,2]
[344302712,1733333439381,-500.0,0.00024653,2]
[344302713,1733333439391,-703.09269491,0.00024653,2]
[344302714,1733333439401,-202.09008199,0.00024653,2]
[344302715,1733333439411,-703.09269491,0.00024653,2]
[344302716,1733333439421,-703.09269491,0.00024653,2]
[344302717,1733333439432,-500.0,0.00024653,2]
[344302718,1733333439442,-703.09269491,0.00024653,2]
[344302719,1733333439451,-500.0,0.00024653,2]
[344302720,1733333439461,-703.09269491,0.00024653,2]
[344302721,1733333439471,-703.09269491,0.00024653,2]
[344302722,1733333439484,-500.0,0.00024653,2]
[344302723,1733333439494,-703.09269491,0.00024653,2]
[344302724,1733333439504,-703.09269491,0.00024653,2]
[344302725,1733333439514,-703.09269491,0.00024653,2]
[344302726,1733333439524,-703.09269491,0.00024653,2]
[344302727,1733333439534,-703.09269491,0.00024653,2]
[344302728,1733333439544,-703.09269491,0.00024653,2]
[344302729,1733333439554,-703.09269491,0.00024653,2]
[344302730,1733333439564,-703.09269491,0.00024653,2]
[344302731,1733333439574,-703.09269491,0.00024653,2]
[344302732,1733333439584,-703.09269491,0.00024653,2]
[344302733,1733333439597,-703.09269491,0.00024653,2]
[344302734,1733333439608,-703.09269491,0.00024653,2]
[344302735,1733333439618,-703.09269491,0.00024653,2]
[344302736,1733333439628,-703.09269491,0.00024653,2]
[344302737,1733333439639,-703.09269491,0.00024653,2]
[344302738,1733333439650,-703.09269491,0.00024653,2]
[344302739,1733333439659,-703.09269491,0.00024653,2]
[344302740,1733333439669,-703.09269491,0.00024653,2]
[344302741,1733333439679,-703.09269491,0.00024653,2]
[344302742,1733333439689,-703.09269491,0.00024653,2]
[344302743,1733333439699,-703.09269491,0.00024653,2]
[344302744,1733333439710,-703.09269491,0.00024653,2]
[344302745,1733333439719,-703.09269491,0.00024653,2]
[344302746,1733333439731,-703.09269491,0.00024653,2]
[344302747,1733333439741,-703.09269491,0.00024653,2]
[344302748,1733333439751,-703.09269491,0.00024653,2]
[344302749,1733333439760,-703.09269491,0.00024653,2]
[344302750,1733333439770,-703.09269491,0.00024653,2]
[344302751,1733333439781,-452.58737194,0.00024656,2]
[344302752,1733333439791,-500.0,0.00024657,7]
[344302753,1733333439800,-500.0,0.00024657,7]
[344302754,1733333439810,-395.24223214,0.00024657,7]
[344302755,1733333439819,-500.0,0.00024657,7]
[344302756,1733333439830,-500.0,0.00024657,7]
[344302757,1733333439839,-500.0,0.00024657,7]
[344302758,1733333439849,-200.0,0.00024657,7]
[344302759,1733333439859,-500.0,0.00024657,7]
[344302760,1733333439869,-500.0,0.00024657,7]
[344302761,1733333439878,-500.0,0.00024657,7]
[344302762,1733333439888,-500.0,0.00024657,7]
[344302763,1733333439897,-200.0,0.00024657,7]
[344302764,1733333439907,-500.0,0.00024657,7]
[344302765,1733333439917,-500.0,0.00024657,7]
[344302766,1733333439927,-500.0,0.00024657,7]
[344302767,1733333439937,-500.0,0.00024657,7]
[344302768,1733333439947,-500.0,0.00024657,7]
[344302769,1733333439957,-721.83,0.00024657,7]
[344302770,1733333439967,-190.8,0.00024657,7]
[344302771,1733333439979,-573.45,0.00024657,7]
[344302772,1733333439988,-522.96,0.00024657,7]
[344302773,1733333439998,-500.0,0.00024657,7]
[344302774,1733333440009,-500.0,0.00024657,7]
[344302775,1733333440020,-500.0,0.00024657,7]
[344302776,1733333440030,-500.0,0.00024657,7]
[344302777,1733333440040,-500.0,0.00024657,7]
[344302778,1733333440050,-500.0,0.00024657,7]
[344302779,1733333440059,-500.0,0.00024657,7]
[344302780,1733333440069,-500.0,0.00024657,7]
[344302781,1733333440079,-500.0,0.00024657,7]
[344302782,1733333440088,-500.0,0.00024657,7]
[344302783,1733333440098,-501.96163886,0.00024657,7]
[344302784,1733333440107,-501.97669336,0.00024657,7]
[344302785,1733333440118,-500.0,0.00024657,7]
[344302786,1733333440128,-500.0,0.00024657,7]
[344302787,1733333440138,-508.62239305,0.00024657,7]
[344302788,1733333440147,-500.0,0.00024657,7]
[344302789,1733333440157,-512.9563408,0.00024657,7]
[344302790,1733333440167,-526.21018847,0.00024657,7]
[344302791,1733333440176,-500.0,0.00024657,7]
[344302793,1733333440186,-503.30238623,0.00024657,7]
[344302794,1733333440195,-502.89395642,0.00024657,7]
[344302795,1733333440205,-500.0,0.00024657,7]
[344302796,1733333440215,-422.22239197,0.00024657,7]
[344302797,1733333440224,-500.0,0.00024657,7]
[344302798,1733333440238,-185.4393241,0.00024657,7]
[344302799,1733333440248,-500.0,0.00024657,7]
[344302800,1733333440258,-500.0,0.00024657,7]
[344302803,1733333440267,-183.0164954,0.00024657,7]
[344302804,1733333440278,-408.08714394,0.00024657,7]
[344302805,1733333440293,-98.97017993,0.00024657,7]
[344302806,1733333440303,-500.0,0.00024657,7]
[344302807,1733333440312,-500.0,0.00024657,7]
[344302808,1733333440322,-500.0,0.00024657,7]
[344302809,1733333440333,-500.0,0.00024657,7]
[344302810,1733333440343,-500.0,0.00024657,7]
[344302811,1733333440353,-500.0,0.00024657,7]
[344302812,1733333440363,-709.08,0.00024657,7]
[344302813,1733333440373,-646.68858875,0.00024657,7]
[344302814,1733333440382,-926.59,0.00024657,7]
[344302815,1733333440392,-512.00969686,0.00024657,7]
[344302816,1733333440402,-500.0,0.00024657,7]
[344302817,1733333440412,-500.0,0.00024657,7]
[344302818,1733333440422,-604.62884947,0.00024657,7]
[344302819,1733333440432,-507.80014924,0.00024657,7]
[344302820,1733333440442,-500.0,0.00024657,7]
[344302821,1733333440452,-500.0,0.00024657,7]
[344302822,1733333440461,-500.0,0.00024657,7]
[344302823,1733333440471,-500.0,0.00024657,7]
[344302824,1733333440484,-474.61344225,0.00024657,7]
[344302825,1733333440493,-505.47408052,0.00024657,7]
[344302826,1733333440503,-501.28955187,0.00024657,7]
[344302827,1733333440513,-500.0,0.00024657,7]
[344302828,1733333440523,-500.0,0.00024657,7]
[344302829,1733333440532,-500.0,0.00024657,7]
[344302830,1733333440542,-500.0,0.00024657,7]
[344302831,1733333440551,-501.32925709,0.00024657,7]
[344302832,1733333440560,-500.0,0.00024657,7]
[344302833,1733333440569,-500.0,0.00024657,7]
[344302834,1733333440579,-504.13,0.00024657,7]
[344302835,1733333440589,-500.0,0.00024657,7]
[344302836,1733333440600,-500.0,0.00024657,7]
[344302837,1733333440610,-500.0,0.00024657,7]
[344302838,1733333440619,-723.18,0.00024657,7]
[344302839,1733333440629,-500.0,0.00024657,7]
[344302840,1733333440638,-175.48336397,0.00024657,7]
[344302841,1733333440652,-500.0,0.00024657,7]
[344302842,1733333440662,-500.0,0.00024657,7]
[344302843,1733333440671,-500.0,0.00024657,7]
[344302844,1733333440680,-500.0,0.00024657,7]
[344302845,1733333440690,-500.0,0.00024657,7]
[344302846,1733333440699,-505.50948391,0.00024657,7]
[344302847,1733333440709,-500.0,0.00024657,7]
[344302848,1733333440719,-500.0,0.00024657,7]
[344302849,1733333440730,-500.0,0.00024657,7]
[344302850,1733333440739,-500.0,0.00024657,7]
[344302851,1733333440748,-500.0,0.00024657,7]
[344302852,1733333440758,-517.07872995,0.00024657,7]
[344302853,1733333440768,-500.0,0.00024657,7]
[344302855,1733333440777,-500.0,0.00024657,7]
[344302857,1733333440786,-500.0,0.00024657,7]
[344302859,1733333440796,-500.0,0.00024657,7]
[344302860,1733333440806,-500.0,0.00024657,7]
[344302862,1733333440815,-626.31,0.00024657,7]
[344302864,1733333440825,-500.0,0.00024657,7]
[344302866,1733333440835,-500.0,0.00024657,7]
[344302868,1733333440844,-1467.58,0.00024657,7]
[344302870,1733333440853,-662.89,0.00024657,7]
[344302872,1733333440863,-500.0,0.00024657,7]
[344302874,1733333440872,-500.0,0.00024657,7]
[344302875,1733333440882,-500.0,0.00024657,7]
[344302876,1733333440892,-250.12049086,0.00024657,7]
[344302877,1733333440901,-500.0,0.00024657,7]
[344302878,1733333440911,-500.0,0.00024657,7]
[344302879,1733333440920,-500.0,0.00024657,7]
[344302880,1733333440930,-500.0,0.00024657,7]
[344302881,1733333440939,-500.0,0.00024657,7]
[344302882,1733333440949,-677.12,0.00024657,7]
[344302883,1733333440959,-524.85,0.00024657,7]
[344302884,1733333440968,-500.0,0.00024657,7]
[344302885,1733333440981,-500.0,0.00024657,7]
[344302886,1733333440991,-500.0,0.00024657,7]
[344302887,1733333441000,-500.0,0.00024657,7]
[344302888,1733333441010,-500.0,0.00024657,7]
[344302889,1733333441019,-500.0,0.00024657,7]
[344302890,1733333441029,-292.40454998,0.00024657,7]
[344302891,1733333441038,-500.0,0.00024657,7]
[344302892,1733333441048,-500.0,0.00024657,7]
[344302893,1733333441058,-239.3911626,0.00024657,7]
[344302894,1733333441067,-500.0,0.00024657,7]
[344302895,1733333441076,-500.0,0.00024657,7]
[344302896,1733333441086,-500.0,0.00024657,7]
[344302897,1733333441096,-500.0,0.00024657,7]
[344302898,1733333441105,-629.48,0.00024657,7]
[344302899,1733333441114,-548.93657184,0.00024657,7]
[344302900,1733333441123,-500.0,0.00024657,7]
[344302901,1733333441133,-500.0,0.00024657,7]
[344302902,1733333441142,-500.0,0.00024657,7]
[344302903,1733333441152,-500.0,0.00024657,7]
[344302904,1733333441161,-500.0,0.00024657,7]
[344302905,1733333441170,-500.0,0.00024657,7]
[344302906,1733333441179,-500.0,0.00024657,7]
[344302907,1733333441189,-500.0,0.00024657,7]
[344302908,1733333441199,-500.0,0.00024657,7]
[344302909,1733333441208,-243.51545723,0.00024657,7]
[344302910,1733333441218,-388.55478345,0.00024657,7]
[344302911,1733333441232,-1116.42,0.00024657,7]
[344302912,1733333441241,-500.0,0.00024657,7]
[344302913,1733333441251,-500.0,0.00024657,7]
[344302914,1733333441261,-500.0,0.00024657,7]
[344302915,1733333441270,-500.0,0.00024657,7]
[344302916,1733333441280,-500.0,0.00024657,7]
[344302917,1733333441290,-505.65060216,0.00024657,7]
[344302918,1733333441300,-505.73565355,0.00024657,7]
[344302919,1733333441310,-500.0,0.00024657,7]
[344302920,1733333441320,-500.0,0.00024657,7]
[344302921,1733333441330,-500.0,0.00024657,7]
[344302922,1733333441340,-500.0,0.00024657,7]
[344302923,1733333441349,-500.0,0.00024657,7]
[344302924,1733333441359,-384.56992477,0.00024657,7]
[344302925,1733333441368,-563.92,0.00024657,7]
[344302926,1733333441378,-500.0,0.00024657,7]
[344302927,1733333441387,-500.0,0.00024657,7]
[344302928,1733333441397,-522.96,0.00024657,7]
[344302929,1733333441407,-500.0,0.00024657,7]
[344302930,1733333441416,-500.0,0.00024657,7]
[344302931,1733333441572,-500.0,0.00024657,7]
[344302932,1733333441587,-515.01,0.00024657,7]
[344302933,1733333441599,-500.0,0.00024657,7]
[344302934,1733333441608,-500.0,0.00024657,7]
[344302935,1733333441618,-500.0,0.00024657,7]
[344302936,1733333441627,-504.71,0.00024657,7]
[344302937,1733333441638,-500.0,0.00024657,7]
[344302938,1733333441649,-7087.95,0.00024657,7]
[344302939,1733333441658,-500.0,0.00024657,7]
[344302940,1733333441670,-500.0,0.00024657,7]
[344302941,1733333441680,-500.0,0.00024657,7]
[344302942,1733333441691,-500.0,0.00024657,7]
[344302943,1733333441700,-250.14905061,0.00024657,7]
[344302944,1733333441710,-500.0,0.00024657,7]
[344302945,1733333441720,-2035.02,0.00024657,7]
[344302946,1733333441732,-500.0,0.00024657,7]
[344302947,1733333441743,-3116.65,0.00024657,7]
[344302948,1733333441753,-500.0,0.00024657,7]
[344302949,1733333441762,-500.0,0.00024657,7]
[344302950,1733333441772,-500.0,0.00024657,7]
[344302951,1733333441781,-500.0,0.00024657,7]
[344302952,1733333441791,-500.0,0.00024657,7]
[344302953,1733333441801,-500.0,0.00024657,7]
[344302954,1733333441810,-500.0,0.00024657,7]
[344302955,1733333441819,-564.96,0.00024657,7]
[344302956,1733333441829,-500.0,0.00024657,7]
[344302957,1733333441838,-500.0,0.00024657,7]
[344302958,1733333441848,-500.0,0.00024657,7]
[344302959,1733333441858,-500.0,0.00024657,7]
[344302960,1733333441868,-500.0,0.00024657,7]
[344302961,1733333441877,-561.88810177,0.00024657,7]
[344302962,1733333441887,-1293.31,0.00024657,7]
[344302963,1733333441896,-500.0,0.00024657,7]
[344302964,1733333441905,-500.0,0.00024657,7]
[344302965,1733333441915,-500.0,0.00024657,7]
[344302966,1733333441924,-500.0,0.00024657,7]
[344302967,1733333441934,-1459.39,0.00024657,7]
[344302968,1733333441943,-657.86,0.00024657,7]
[344302969,1733333441952,-500.0,0.00024657,7]
[344302970,1733333441961,-500.0,0.00024657,7]
[344302971,1733333441971,-599.05,0.00024657,7]
[344302972,1733333441984,-500.0,0.00024657,7]
[344302973,1733333441994,-506.57069728,0.00024657,7]
[344302974,1733333442003,-689.6,0.00024657,7]
[344302975,1733333442012,-903.51,0.00024657,7]
[344302976,1733333442021,-500.0,0.00024657,7]
[344302977,1733333442031,-500.0,0.00024657,7]
[344302978,1733333442040,-500.0,0.00024657,7]
[344302979,1733333442049,-500.0,0.00024657,7]
[344302980,1733333442058,-1056.39,0.00024657,7]
[344302981,1733333442068,-500.0,0.00024657,7]
[344302982,1733333442077,-557.51,0.00024657,7]
[344302983,1733333442087,-500.0,0.00024657,7]
[344302984,1733333442097,-500.0,0.00024657,7]
[344302985,1733333442106,-2094.84,0.00024657,7]
[344302986,1733333442116,-500.0,0.00024657,7]
[344302987,1733333442125,-531.42398939,0.00024657,7]
[344302988,1733333442134,-679.03,0.00024657,7]
[344302989,1733333442143,-500.0,0.00024657,7]
[344302990,1733333442153,-500.0,0.00024657,7]
[344302991,1733333442162,-500.0,0.00024657,7]
[344302992,1733333442171,-500.0,0.00024657,7]
[344302993,1733333442180,-1824.02,0.00024657,7]
[344302994,1733333442189,-655.64,0.00024657,7]
[344302995,1733333442199,-500.0,0.00024657,7]
[344302996,1733333442208,-500.0,0.00024657,7]
[344302997,1733333442217,-500.0,0.00024657,7]
[344302998,1733333442227,-500.0,0.00024657,7]
[344302999,1733333442244,-500.0,0.00024657,7]
[344303000,1733333442255,-606.39,0.00024657,7]
[344303001,1733333442265,-500.0,0.00024657,7]
[344303002,1733333442274,-535.37,0.00024657,7]
[344303003,1733333442284,-500.0,0.00024657,7]
[344303004,1733333442294,-500.0,0.00024657,7]
[344303005,1733333442304,-703.44,0.00024657,7]
[344303006,1733333442313,-500.0,0.00024657,7]
[344303007,1733333442323,-571.15,0.00024657,7]
[344303008,1733333442333,-770.81,0.00024657,7]
[344303009,1733333442343,-771.52,0.00024657,7]
[344303010,1733333442353,-500.0,0.00024657,7]
[344303011,1733333442362,-500.0,0.00024657,7]
[344303012,1733333442372,-500.0,0.00024657,7]
[344303013,1733333442382,-500.0,0.00024657,7]
[344303014,1733333442392,-500.0,0.00024657,7]
[344303015,1733333442402,-500.0,0.00024657,7]
[344303016,1733333442412,-266.02663811,0.00024657,7]
[344303017,1733333442421,-500.0,0.00024657,7]
[344303018,1733333442431,-500.0,0.00024657,7]
[344303019,1733333442440,-500.0,0.00024657,7]
[344303020,1733333442449,-500.0,0.00024657,7]
[344303021,1733333442459,-500.0,0.00024657,7]
[344303022,1733333442468,-729.72,0.00024657,7]
[344303023,1733333442478,-500.0,0.00024657,7]
[344303024,1733333442491,-500.0,0.00024657,7]
[344303025,1733333442501,-7776.5,0.00024657,7]
[344303026,1733333442510,-500.0,0.00024657,7]
[344303027,1733333442520,-33333.0,0.00024831,2]
[344303028,1733333442530,-572.50002715,0.00024931,7]
[344303029,1733333442540,-353.84948867,0.00024931,7]
[344303030,1733333442549,-500.0,0.00024931,7]
[344303031,1733333442559,-500.0,0.00024931,7]
[344303032,1733333442569,-500.0,0.00024931,7]
[344303033,1733333442579,-200.0,0.00024931,7]
[344303034,1733333442588,-500.0,0.00024931,7]
[344303035,1733333442602,-500.0,0.00024931,7]
[344303036,1733333442611,-500.0,0.00024931,7]
[344303037,1733333442621,-500.0,0.00024931,7]
[344303038,1733333442630,-200.0,0.00024931,7]
[344303039,1733333442640,-500.0,0.00024931,7]
[344303040,1733333442650,-500.0,0.00024931,7]
[344303041,1733333442659,-632.15296539,0.00024931,7]
[344303042,1733333442670,-500.0,0.00024931,7]
[344303043,1733333442679,-500.0,0.00024931,7]
[344303044,1733333442688,-721.83,0.00024931,7]
[344303045,1733333442701,-573.45,0.00024931,7]
[344303046,1733333442711,-522.96,0.00024931,7]
[344303047,1733333442720,-500.0,0.00024931,7]
[344303048,1733333442732,-576.03603166,0.00024931,7]
[344303049,1733333442742,-500.0,0.00024931,7]
[344303050,1733333442751,-609.4124781,0.00024931,7]
[344303051,1733333442760,-500.0,0.00024931,7]
[344303052,1733333442770,-440.42584179,0.00024931,7]
[344303053,1733333442779,-500.0,0.00024931,7]
[344303054,1733333442789,-500.0,0.00024931,7]
[344303055,1733333442799,-500.0,0.00024931,7]
[344303056,1733333442808,-500.0,0.00024931,7]
[344303057,1733333442818,-500.0,0.00024931,7]
[344303058,1733333442828,-500.0,0.00024931,7]
[344303059,1733333442837,-500.0,0.00024931,7]
[344303060,1733333442847,-500.0,0.00024931,7]
[344303061,1733333442856,-709.08,0.00024931,7]
[344303062,1733333442866,-926.59,0.00024931,7]
[344303063,1733333442876,-500.0,0.00024931,7]
[344303064,1733333442885,-394.72107609,0.00024931,7]
[344303065,1733333442894,-500.0,0.00024931,7]
[344303066,1733333442904,-500.0,0.00024931,7]
[344303067,1733333442913,-500.0,0.00024931,7]
[344303068,1733333442924,-500.0,0.00024931,7]
[344303069,1733333442934,-508.07319475,0.00024931,7]
[344303070,1733333442943,-500.0,0.00024931,7]
[344303071,1733333442952,-500.0,0.00024931,7]
[344303072,1733333442961,-361.54110916,0.00024931,7]
[344303073,1733333442971,-504.13,0.00024931,7]
[344303074,1733333442983,-500.0,0.00024931,7]
[344303075,1733333442993,-500.0,0.00024931,7]
[344303076,1733333443002,-723.18,0.00024931,7]
[344303077,1733333443012,-500.0,0.00024931,7]
[344303078,1733333443023,-500.0,0.00024931,7]
[344303079,1733333443032,-500.0,0.00024931,7]
[344303080,1733333443042,-500.0,0.00024931,7]
[344303081,1733333443052,-500.0,0.00024931,7]
[344303082,1733333443061,-500.0,0.00024931,7]
[344303083,1733333443070,-500.0,0.00024931,7]
[344303084,1733333443079,-500.0,0.00024931,7]
[344303085,1733333443089,-253.21,0.00024931,7]
[344303086,1733333443099,-500.0,0.00024931,7]
[344303087,1733333443108,-500.0,0.00024931,7]
[344303088,1733333443117,-500.0,0.00024931,7]
[344303089,1733333443127,-500.0,0.00024931,7]
[344303090,1733333443137,-626.31,0.00024931,7]
[344303091,1733333443146,-500.0,0.00024931,7]
[344303092,1733333443157,-500.0,0.00024931,7]
[344303093,1733333443166,-1467.58,0.00024931,7]
[344303094,1733333443176,-662.89,0.00024931,7]
[344303095,1733333443186,-500.0,0.00024931,7]
[344303096,1733333443196,-500.0,0.00024931,7]
[344303097,1733333443205,-317.65480214,0.00024931,7]
[344303098,1733333443215,-500.0,0.00024931,7]
[344303099,1733333443224,-500.0,0.00024931,7]
[344303100,1733333443238,-500.0,0.00024931,7]
[344303101,1733333443247,-500.0,0.00024931,7]
[344303102,1733333443256,-677.12,0.00024931,7]
[344303103,1733333443266,-524.85,0.00024931,7]
[344303104,1733333443275,-500.0,0.00024931,7]
[344303105,1733333443286,-500.0,0.00024931,7]
[344303106,1733333443295,-500.0,0.00024931,7]
[344303107,1733333443306,-500.0,0.00024931,7]
[344303108,1733333443316,-500.0,0.00024931,7]
[344303109,1733333443326,-500.0,0.00024931,7]
[344303110,1733333443338,-363.66055017,0.00024931,7]
[344303111,1733333443348,-500.0,0.00024931,7]
[344303112,1733333443358,-500.0,0.00024931,7]
[344303113,1733333443367,-500.0,0.00024931,7]
[344303114,1733333443378,-500.0,0.00024931,7]
[344303115,1733333443388,-500.0,0.00024931,7]
[344303116,1733333443399,-629.48,0.00024931,7]
[344303117,1733333443410,-500.0,0.00024931,7]
[344303118,1733333443420,-500.0,0.00024931,7]
[344303119,1733333443430,-500.65395762,0.00024931,7]
[344303120,1733333443441,-500.0,0.00024931,7]
[344303121,1733333443451,-500.0,0.00024931,7]
[344303122,1733333443462,-500.0,0.00024931,7]
[344303123,1733333443472,-500.0,0.00024931,7]